{"text_format":"1","workbook":"xlsx","n_sheets":5,"sheets":["Реестр","Основные параметры","ШАБЛОН","АСР 1","АСР 6"],"not_rendered":{"charts":0,"images":0,"macros":1,"external_links":0,"defined_names":0,"comments":0,"pivot_tables":0},"unopened":[],"bounds":{"document_bytes":16777216,"sheet_cells":100000,"rows_first":2000,"rows_last":500,"rows_between":2000,"halvings":0,"cell_chars":16384,"cell_head_chars":4096},"cells_cut":0,"cells_raw":0,"read":"whole","date_system":"1900"}

{"sheet":"Реестр","index":0,"n_rows":2,"n_cols":2,"rows_kept":2,"cut":false,"hidden":false,"merged":[]}
[]
["АКТ освидетельствования скрытых работ  № АС-1 Кладка отдельных участков кирпичных стен и заделка проемов в кирпичных стенах - 5,2 м3","2017-08-03"]

{"sheet":"Основные параметры","index":1,"n_rows":122,"n_cols":10,"rows_kept":122,"cut":false,"hidden":false,"merged":[[13,0,13,9],[0,0,0,9],[1,0,1,9],[4,0,4,9],[5,0,5,9],[6,0,6,9],[7,0,7,9],[8,0,8,9],[9,0,9,9],[10,0,10,9],[11,0,11,9],[12,0,12,9],[2,0,2,9],[3,0,3,9],[18,0,18,6],[19,0,19,6],[20,0,20,6],[14,0,14,9],[15,0,15,9],[16,0,16,9],[17,0,17,6]]}
["Представитель застройщика или заказчика по вопросам СК (Должность, Фамилия. И.О., приказ)"]
[]
["Представитель застройщика или заказчика  (Должность, Фамилия. И.О., приказ)"]
["гл. специалист ЗТО ГКУ ГИСУ РТ Миниханов И.Х. приказ №"]
["Представитель лица осуществляющего строительство (Должность, Фамилия. И.О., приказ)"]
["главный инженер ГУП \"Татлизинг\" Гильфанов Х.Ш. приказ №10/61 от 28.03.2017г."]
["Представитель лица осуществляющего строительство по вопросам СК (Должность, Фамилия. И.О., приказ)"]
["главный инженер ГУП \"Татлизинг\" Гильфанов Х.Ш. приказ №10/61 от 28.03.2017г."]
["Представитель лица осуществляющего подготовку проектной документации (Должность, Фамилия. И.О., приказ)"]
["ГИП ООО \"ПЦ \"Град\" Степанова М.В. приказ №"]
["Представитель лица осуществляющего строительство, выполневшее работы (Должность, Фамилия. И.О., приказ)"]
["технический директор ООО \"Реставратор\" Галявиев Н.Ф. приказ №5/06 от 05.06.2017г."]
["Иные представители лиц (Должность, Фамилия. И.О., приказ)"]
[]
["Иные представители лиц (Должность, Фамилия. И.О., приказ)"]
[]
["Основные сведения о предъявляемых работах"]
["Объект капитального строительства",null,null,null,null,null,null,"Раздел проекта","Дата заключения","Информация о проектной документации"]
["Капиталный ремонт ГАУЗ \"Городская детская больница №1\" г. Казань, ул. Ленская, д.2",null,null,null,null,null,null,"АС"]
[]
[]
["№ п/п","№ акта","Дата составления акта","Предъявляемая работа","Следующая работа","Примененные материалы и сертификаты  ","исполнительные схемы и чертежи, результаты экспертиз, обследований, лабораторных испытаний выполненных работ","Дата начала работ","Дата окончания работ","2. Работы выполнены по проектной документации(номер, другие реквизиты чертежа, наименование проектной и/или рабочей документации,сведения о лицах, осуществляющих подготовку раздела  проектной и/или рабочей документации)"]
[1,{"$f":"IF(ISBLANK(D23),\" \",CONCATENATE($H$19,\"-\",A23))","v":"АС-1"},{"$f":"IF(ISBLANK(I23),\" \",I23)","v":" "},"Очистка потолков щетками - 3,4 м2","огрунтовка потолков",null,null,null,null,"ООО \"ПЦ \"Град\" проект №3488/2017-АС, ГИП Лизунов Т.Ю."]
[2,{"$f":"IF(ISBLANK(D24),\" \",CONCATENATE($H$19,\"-\",A24))","v":" "},{"$f":"IF(ISBLANK(I24),\" \",I24)","v":" "}]
[3,{"$f":"IF(ISBLANK(D25),\" \",CONCATENATE($H$19,\"-\",A25))","v":" "},{"$f":"IF(ISBLANK(I25),\" \",I25)","v":" "}]
[4," "," "]
[5," "," "]
[6,"АС-6"," ","Устройство перегородок из гипсокартонных листов (ГКЛ) по системе «КНАУФ» с одинарным металлическим каркасом и двухслойной обшивкой с обеих сторон (С 112): с одним дверным проемом - 212,9 м2","монтаж листов ГКЛ","Профиль направляющий ПН-6 100/40/0,6, Профиль стоечный ПС-6 100/50/0,6"]
[7," "," "]
[8," "," "]
[9," "," "]
[10," "," "]
[11," "," "]
[12," "," "]
[13," "," "]
[14," "," "]
[15," "," "]
[16," "," "]
[17," "," "]
[18," "," "]
[19," "," "]
[20," "," "]
[21," "," "]
[22," "," "]
[23," "," "]
[24," "," "]
[25," "," "]
[26," "," "]
[27," "," "]
[28," "," "]
[29," "," "]
[30," "," "]
[31," "," "]
[32," "," "]
[33," "," "]
[34," "," "]
[35," "," "]
[36," "," "]
[37," "," "]
[38," "," "]
[39," "," "]
[40," "," "]
[41," "," "]
[42," "," "]
[43," "," "]
[44," "," "]
[45," "," "]
[46," "," "]
[47," "," "]
[48," "," "]
[49," "," "]
[50," "," "]
[51," "," "]
[52," "," "]
[53," "," "]
[54," "," "]
[55," "," "]
[56," "," "]
[57," "," "]
[58," "," "]
[59," "," "]
[60," "," "]
[61," "," "]
[62," "," "]
[63," "," "]
[64," "," "]
[65," "," "]
[66," "," "]
[67,{"$f":"IF(ISBLANK(D89),\" \",CONCATENATE($H$19,\"-\",A89))","v":" "},{"$f":"IF(ISBLANK(I89),\" \",I89)","v":" "}]
[68," "," "]
[69," "," "]
[70," "," "]
[71," "," "]
[72," "," "]
[73," "," "]
[74," "," "]
[75," "," "]
[76," "," "]
[77," "," "]
[78," "," "]
[79," "," "]
[80," "," "]
[81," "," "]
[82," "," "]
[83," "," "]
[84," "," "]
[85," "," "]
[86," "," "]
[87," "," "]
[88," "," "]
[89," "," "]
[90," "," "]
[91," "," "]
[92," "," "]
[93," "," "]
[94," "," "]
[95," "," "]
[96," "," "]
[97," "," "]
[98," "," "]
[99," "," "]
[100,{"$f":"IF(ISBLANK(D122),\" \",CONCATENATE($H$11,\"-\",A122))","v":" "},{"$f":"IF(ISBLANK(I122),\" \",I122)","v":" "}]

{"sheet":"ШАБЛОН","index":2,"n_rows":124,"n_cols":19,"rows_kept":124,"cut":false,"hidden":false,"merged":[[109,16,109,18],[112,13,112,18],[115,14,115,18],[118,6,118,10],[118,11,118,18],[122,0,122,18],[123,0,123,18],[39,14,39,16],[45,0,45,18],[62,0,62,18],[116,0,116,18],[117,0,117,18],[119,0,119,18],[120,0,120,18],[121,0,121,18],[110,0,110,18],[111,0,111,18],[113,0,113,18],[114,0,114,18],[103,8,103,18],[104,0,104,18],[105,0,105,18],[106,10,106,18],[107,0,107,18],[108,0,108,18],[95,6,95,18],[98,3,98,18],[99,0,99,18],[101,0,101,18],[102,0,102,18],[89,0,89,18],[90,0,90,18],[91,10,91,18],[92,0,92,18],[93,0,93,18],[94,0,94,18],[100,17,100,18],[84,8,84,12],[84,13,84,14],[85,10,85,18],[86,10,86,18],[87,0,87,18],[88,0,88,18],[79,3,79,18],[80,0,80,18],[81,0,81,18],[82,0,82,18],[83,8,83,12],[83,13,83,14],[73,0,73,18],[74,0,74,18],[75,0,75,6],[75,7,75,18],[76,0,76,18],[77,0,77,18],[68,0,68,18],[69,0,69,18],[70,0,70,18],[71,0,71,9],[71,10,71,18],[72,0,72,18],[63,0,63,18],[64,0,64,7],[64,8,64,18],[65,0,65,18],[66,0,66,8],[67,0,67,10],[67,11,67,18],[59,0,59,12],[59,13,59,18],[60,0,60,18],[61,0,61,18],[54,0,54,18],[55,0,55,18],[57,0,57,18],[58,0,58,18],[46,0,46,18],[48,0,48,18],[49,0,49,18],[51,0,51,18],[52,0,52,18],[47,11,47,18],[50,17,50,18],[53,13,53,18],[56,14,56,18],[41,0,41,16],[42,0,42,18],[43,0,43,18],[44,8,44,18],[34,0,34,18],[35,0,35,18],[36,0,36,18],[37,0,37,18],[38,0,38,18],[39,1,39,5],[41,17,41,18],[28,0,28,18],[29,0,29,18],[30,0,30,18],[31,0,31,18],[32,0,32,18],[33,0,33,18],[22,0,22,16],[23,0,23,18],[24,0,24,18],[25,0,25,18],[26,0,26,18],[27,0,27,18],[17,0,17,18],[18,0,18,18],[19,0,19,18],[20,0,20,16],[21,0,21,11],[21,12,21,18],[11,0,11,16],[12,8,12,18],[13,0,13,18],[14,0,14,18],[15,0,15,18],[16,0,16,16],[5,0,5,18],[6,0,6,18],[7,0,7,18],[8,0,8,18],[9,0,9,18],[10,0,10,18],[1,0,1,6],[1,7,1,18],[2,0,2,18],[3,0,3,18],[4,7,4,18]]}
[]
["Объект капитального строительства",null,null,null,null,null,null,"Капитальный ремонт ГАУЗ \"Городская детская поликлиника №7\" "]
["г. Казань, ул. М.Чуйкова,23"]
["(наименование, почтовый или строительный адрес объекта капитального строительства)"]
["Застройщик или технический заказчик",null,null,null,null,null,null,"ГКУ \"Главное инвестиционно-строительное управление РТ\""]
["(наименование, ОГРН, ИНН, номер и дата выдачи свидетельства о допуске к видам работ по строительству, реконструкции,"]
["свидетельство №1021602841336 от 23.05.03г. ОГРН 1021602841336, ИНН 1654006250, "]
[" капитальному ремонту объектов капитального строительства, которые оказывают влияние на безопасность объектов, "]
["420043, г.Казань, ул Лесгафта, д.29, тел. (843)-264-80-00,"]
["с указанием саморегулируемой организации, его выдавшей, почтовые реквизиты, тел./факс – для  юридических лиц и индивидуальных "]
[]
["предпринимателей; фамилия, имя, отчество, паспортные данные, место проживания, телефон/факс - для физических лиц)"]
["Лицо, осуществляющее строительство",null,null,null,null,null,null,null,"Государственное унитарное предприятие РТ \"Татлизинг\""]
["(наименование, ОГРН, ИНН, номер и дата выдачи свидетельства о допуске к видам работ по строительству, реконструкции,"]
["ОГРН 1061655025090, ИНН 165510661, 420061, г.Казань, ул. Н. Ершова, дом 1а, "]
["помещение к-3/109, 3 этаж, тел. (843) 279-33-97"]
[" капитальному ремонту объектов капитального строительства, которые оказывают влияние на безопасность объектов, "]
["420029, РТ, г.Казань ул. Журналистов, 6"]
["с указанием саморегулируемой организации, его выдавшей, почтовые реквизиты, тел./факс – для  юридических лиц и индивидуальных "]
[]
["предпринимателей; фамилия, имя, отчество, паспортные данные, место проживания, телефон/факс - для физических лиц)"]
["Лицо, осуществляющее подготовку проектной документации",null,null,null,null,null,null,null,null,null,null,null,"Общество с ограниченной"]
["(наименование, ОГРН, ИНН, номер и дата выдачи свидетельства о допуске к видам работ по строительству, реконструкции,"]
["ответственностью \"ПЦ \"Град\", свидетельство №735.02.-2015-1660236406-П-192 от 26.02.2015г. "]
["ОГРН 1151690007083, ИНН 1660236406,  420029, г. Казань,  ул. Журналистов д.62 тел. (843)-238-43-69"]
[" капитальному ремонту объектов капитального строительства, которые оказывают влияние на безопасность объектов, "]
[]
["с указанием саморегулируемой организации, его выдавшей, почтовые реквизиты, тел./факс – для  юридических лиц и индивидуальных предпринимателей; фамилия, имя, отчество, паспортные данные, место проживания, телефон/факс - для физических лиц)"]
["Лицо, осуществляющее строительство, выполнившее работы, подлежащие освидетельствованию "]
["Общество с ограниченной ответственностью \"Реставратор\""]
["(наименование, ОГРН, ИНН, номер и дата выдачи свидетельства о допуске к видам работ по строительству, реконструкции,"]
[" ОГРН 1131690040041, ИНН 1655271243, 420111, РТ, г. Казань, "]
["Свидетельство СРО №0097-2015-1215059180-06 от 27.11.2015г.  СРО НП \"Союзнефтегазпроект\". "]
[" капитальному ремонту объектов капитального строительства, которые оказывают влияние на безопасность объектов, "]
["ул. К.Наджми, д.5, оф. 3.4, тел. (843)210-14-19,"]
["с указанием саморегулируемой организации, его выдавшей, почтовые реквизиты, тел./факс – для  юридических лиц и индивидуальных "]
["предпринимателей; фамилия, имя, отчество, паспортные данные, место проживания, телефон/факс - для физических лиц)"]
["АКТ"]
["освидетельствования скрытых работ "]
["№",null,null,null,null,null,null,null,null,null,null,"\"",{"$f":"G85","v":0},"\"",{"$f":"I85","v":0},null,null,null,{"$f":"N85","v":0}]
[]
["Представитель застройщика или технического заказчика по вопросам строительного контроля:"]
[]
["(должность, фамилия, инициалы, реквизиты документа о представительстве)"]
["Представитель застройщика или заказчика:"]
[]
["(должность, фамилия, инициалы, реквизиты документа о представительстве)"]
["Представитель лица, осуществляющего строительство:"]
[]
["(должность, фамилия, инициалы, реквизиты документа о представительстве)"]
["Представитель лица, осуществляющего строительство, по вопросам строительного контроля :"]
[]
["(должность, фамилия, инициалы, реквизиты документа о представительстве)"]
["Представитель лица, осуществляющего подготовку проектной документации :"]
[]
["(должность, фамилия, инициалы, реквизиты документа о представительстве)"]
["Представитель лица, выполнившего работы, подлежащие освидетельствованию:"]
[]
["(должность, фамилия, инициалы, реквизиты документа о представительстве)"]
["а также иные представители лиц, участвующих в освидетельствовании:"]
[]
["(должность, фамилия, инициалы, реквизиты документа о представительстве)"]
[]
["(должность, фамилия, инициалы, реквизиты документа о представительстве)"]
["произвели осмотр работ, выполненных",null,null,null,null,null,null,null,"ООО \"Реставратор\""]
["                                                                              (наименование лица, осуществляющего строительство, выполнившего работы )"]
["и составили настоящий акт о нижеследующем:"]
["1. К освидетельствованию предъявлены следующие работы"]
[]
[]
["(наименование скрытых работ)"]
["2. Работы выполнены по проектной документации"]
[]
["(номер, другие реквизиты чертежа, наименование проектной и/или рабочей документации,"]
["сведения о лицах, осуществляющих подготовку раздела  проектной и/или рабочей документации)"]
["3. При выполнении работ применены"]
[]
["(изделий) со ссылкой на сертификаты или другие документы, подтверждающие качество)"]
["4. Предъявлены документы, подтверждающие соответствие работ предъявляемым к ним "]
["требованиям:"]
[]
["(исполнительные схемы и чертежи, результаты экспертиз, обследований, лабораторных и иных"]
["испытаний выполненных работ, проведенных в процессе строительного контроля.)"]
["5. Даты: начала работ",null,null,null,null,"\"",null,"\""]
[null,"окончания работ",null,null,null,"\"",null,"\""]
["6. Работы выполнены в соответствии с проектом",null,null,null,null,null,null,null,null,null,{"$f":"K72","v":0}]
[null,null,null,null,null,null,null,null,null,null,"(указываются наименование, статьи) "]
[{"$f":"A73","v":0}]
["СП 70.13330.2012 \"НЕСУЩИЕ И ОГРАЖДАЮЩИЕ КОНСТРУКЦИИ\" "]
[]
["(пункты) технического регламента, иных нормативных правовых актов, (разделы проектной и/или рабочей документации)"]
["7. Разрешается производство последующих работ по "]
[]
[]
["наименование работ,  конструкций, участков сетей инженерно-технического обеспечения)"]
["Дополнительные сведения ",null,null,null,null,null,"н/п"]
["Акт составлен в",null,null,null,3,"экземплярах."]
[]
["Приложения:"]
[]
["Представитель застройщика или технического заказчика по вопросам строительного контроля:"]
["гл. специалист ОКСИО ГКУ ГИСУ РТ Матюнин Д.А."]
["(должность, фамилия, инициалы, подпись)"]
["Представитель застройщика или заказчика",null,null,null,null,null,null,null,"гл. специалист ЗТО ГКУ ГИСУ РТ Миниханов И.Х."]
[]
["(должность, фамилия, инициалы, подпись)"]
["Представитель лица, осуществляющего строительство",null,null,null,null,null,null,null,null,null,"главный инженер ГУП \"Татлизинг\""]
[" Гильфанов Х.Ш."]
["(должность, фамилия, инициалы, подпись)"]
["Представитель лица, осуществляющего строительство, по вопросам строительного контроля"]
["главный инженер ГУП \"Татлизинг\" Гильфанов Х.Ш."]
["(должность, фамилия, инициалы, подпись)"]
["Представитель лица, осуществляющего подготовку проектной документации"]
["ГИП ООО \"ПЦ \"Град\" Степанова М.В."]
["(должность, фамилия, инициалы, подпись)"]
["Представитель лица, выполнившего работы, подлежащие освидетельствованию"]
["технический директор ООО \"Реставратор\" Галявиев Н.Ф"]
["(должность, фамилия, инициалы, подпись)"]
["Представители иных лиц:"]
["(должность, фамилия, инициалы, подпись)"]
[]
["(должность, фамилия, инициалы, подпись)"]
[]
["(должность, фамилия, инициалы, подпись)"]

{"sheet":"АСР 1","index":3,"n_rows":124,"n_cols":19,"rows_kept":124,"cut":false,"hidden":false,"merged":[[120,0,120,18],[121,0,121,18],[122,0,122,18],[123,0,123,18],[115,14,115,18],[116,0,116,18],[117,0,117,18],[118,6,118,10],[118,11,118,18],[119,0,119,18],[109,16,109,18],[110,0,110,18],[111,0,111,18],[112,13,112,18],[113,0,113,18],[114,0,114,18],[103,8,103,18],[104,0,104,18],[105,0,105,18],[106,10,106,18],[107,0,107,18],[108,0,108,18],[95,6,95,18],[98,3,98,18],[99,0,99,18],[100,17,100,18],[101,0,101,18],[102,0,102,18],[89,0,89,18],[90,0,90,18],[91,10,91,18],[92,0,92,18],[93,0,93,18],[94,0,94,18],[84,8,84,12],[84,13,84,14],[85,10,85,18],[86,10,86,18],[87,0,87,18],[88,0,88,18],[79,3,79,18],[80,0,80,18],[81,0,81,18],[82,0,82,18],[83,8,83,12],[83,13,83,14],[73,0,73,18],[74,0,74,18],[75,0,75,6],[75,7,75,18],[76,0,76,18],[77,0,77,18],[68,0,68,18],[69,0,69,18],[70,0,70,18],[71,0,71,9],[71,10,71,18],[72,0,72,18],[63,0,63,18],[64,0,64,7],[64,8,64,18],[65,0,65,18],[66,0,66,8],[67,0,67,10],[67,11,67,18],[58,0,58,18],[59,0,59,12],[59,13,59,18],[60,0,60,18],[61,0,61,18],[62,0,62,18],[52,0,52,18],[53,13,53,18],[54,0,54,18],[55,0,55,18],[56,14,56,18],[57,0,57,18],[46,0,46,18],[47,11,47,18],[48,0,48,18],[49,0,49,18],[50,17,50,18],[51,0,51,18],[41,0,41,16],[41,17,41,18],[42,0,42,18],[43,0,43,18],[44,8,44,18],[45,0,45,18],[35,0,35,18],[36,0,36,18],[37,0,37,18],[38,0,38,18],[39,1,39,5],[39,14,39,16],[29,0,29,18],[30,0,30,18],[31,0,31,18],[32,0,32,18],[33,0,33,18],[34,0,34,18],[23,0,23,18],[24,0,24,18],[25,0,25,18],[26,0,26,18],[27,0,27,18],[28,0,28,18],[18,0,18,18],[19,0,19,18],[20,0,20,16],[21,0,21,11],[21,12,21,18],[22,0,22,16],[12,8,12,18],[13,0,13,18],[14,0,14,18],[15,0,15,18],[16,0,16,16],[17,0,17,18],[6,0,6,18],[7,0,7,18],[8,0,8,18],[9,0,9,18],[10,0,10,18],[11,0,11,16],[1,0,1,6],[1,7,1,18],[2,0,2,18],[3,0,3,18],[4,7,4,18],[5,0,5,18]]}
[]
["Объект капитального строительства",null,null,null,null,null,null,"Капиталный ремонт ГАУЗ \"Городская детская"]
["больница №1\" г. Казань, ул. Ленская, д.2"]
["(наименование, почтовый или строительный адрес объекта капитального строительства)"]
["Застройщик или технический заказчик",null,null,null,null,null,null,"ГКУ \"Главное инвестиционно-строительное управление РТ\""]
["(наименование, ОГРН, ИНН, номер и дата выдачи свидетельства о допуске к видам работ по строительству, реконструкции,"]
["свидетельство №1021602841336 от 23.05.03г. ОГРН 1021602841336, ИНН 1654006250, "]
[" капитальному ремонту объектов капитального строительства, которые оказывают влияние на безопасность объектов, "]
["420043, г.Казань, ул Лесгафта, д.29, тел. (843)-264-80-00,"]
["с указанием саморегулируемой организации, его выдавшей, почтовые реквизиты, тел./факс – для  юридических лиц и индивидуальных "]
[]
["предпринимателей; фамилия, имя, отчество, паспортные данные, место проживания, телефон/факс - для физических лиц)"]
["Лицо, осуществляющее строительство",null,null,null,null,null,null,null,"Государственное унитарное предприятие РТ \"Татлизинг\""]
["(наименование, ОГРН, ИНН, номер и дата выдачи свидетельства о допуске к видам работ по строительству, реконструкции,"]
["ОГРН 1061655025090, ИНН 165510661, 420061, г.Казань, ул. Н. Ершова, дом 1а, "]
["помещение к-3/109, 3 этаж, тел. (843) 279-33-97"]
[" капитальному ремонту объектов капитального строительства, которые оказывают влияние на безопасность объектов, "]
["420029, РТ, г.Казань ул. Журналистов, 6"]
["с указанием саморегулируемой организации, его выдавшей, почтовые реквизиты, тел./факс – для  юридических лиц и индивидуальных "]
[]
["предпринимателей; фамилия, имя, отчество, паспортные данные, место проживания, телефон/факс - для физических лиц)"]
["Лицо, осуществляющее подготовку проектной документации",null,null,null,null,null,null,null,null,null,null,null,"Общество с ограниченной"]
["(наименование, ОГРН, ИНН, номер и дата выдачи свидетельства о допуске к видам работ по строительству, реконструкции,"]
["ответственностью \"ПЦ \"Град\", свидетельство №735.02.-2015-1660236406-П-192 от 26.02.2015г. "]
["ОГРН 1151690007083, ИНН 1660236406,  420029, г. Казань,  ул. Журналистов д.62 тел. (843)-238-43-69"]
[" капитальному ремонту объектов капитального строительства, которые оказывают влияние на безопасность объектов, "]
[]
["с указанием саморегулируемой организации, его выдавшей, почтовые реквизиты, тел./факс – для  юридических лиц и индивидуальных предпринимателей; фамилия, имя, отчество, паспортные данные, место проживания, телефон/факс - для физических лиц)"]
["Лицо, осуществляющее строительство, выполнившее работы, подлежащие освидетельствованию "]
["Общество с ограниченной ответственностью \"Реставратор\""]
["(наименование, ОГРН, ИНН, номер и дата выдачи свидетельства о допуске к видам работ по строительству, реконструкции,"]
[" ОГРН 1131690040041, ИНН 1655271243, 420111, РТ, г. Казань, "]
["Свидетельство СРО №0097-2015-1215059180-06 от 27.11.2015г.  СРО НП \"Союзнефтегазпроект\". "]
[" капитальному ремонту объектов капитального строительства, которые оказывают влияние на безопасность объектов, "]
["ул. К.Наджми, д.5, оф. 3.4, тел. (843)210-14-19,"]
["с указанием саморегулируемой организации, его выдавшей, почтовые реквизиты, тел./факс – для  юридических лиц и индивидуальных "]
["предпринимателей; фамилия, имя, отчество, паспортные данные, место проживания, телефон/факс - для физических лиц)"]
["АКТ"]
["освидетельствования скрытых работ "]
["№","АС-1",null,null,null,null,null,null,null,null,null,"\"",{"$f":"G85","v":30},"\"",{"$f":"I85","v":0},null,null,null,{"$f":"N85","v":0}]
[]
["Представитель застройщика или технического заказчика по вопросам строительного контроля:"]
[]
["(должность, фамилия, инициалы, реквизиты документа о представительстве)"]
["Представитель застройщика или заказчика:",null,null,null,null,null,null,null,"гл. специалист ЗТО ГКУ ГИСУ РТ Миниханов И.Х. приказ №"]
[]
["(должность, фамилия, инициалы, реквизиты документа о представительстве)"]
["Представитель лица, осуществляющего строительство:",null,null,null,null,null,null,null,null,null,null,"главный инженер ГУП \"Татлизинг\""]
["Гильфанов Х.Ш. приказ №10/61 от 28.03.2017г."]
["(должность, фамилия, инициалы, реквизиты документа о представительстве)"]
["Представитель лица, осуществляющего строительство, по вопросам строительного контроля :",null,null,null,null,null,null,null,null,null,null,null,null,null,null,null,null,"главный"]
["инженер ГУП \"Татлизинг\" Гильфанов Х.Ш. приказ №10/61 от 28.03.2017г."]
["(должность, фамилия, инициалы, реквизиты документа о представительстве)"]
["Представитель лица, осуществляющего подготовку проектной документации :",null,null,null,null,null,null,null,null,null,null,null,null,"ГИП ООО \"ПЦ \"Град\" Степанова"]
["М.В. приказ №"]
["(должность, фамилия, инициалы, реквизиты документа о представительстве)"]
["Представитель лица, выполнившего работы, подлежащие освидетельствованию:",null,null,null,null,null,null,null,null,null,null,null,null,null,"технический"]
["директор ООО \"Реставратор\" Галявиев Н.Ф. приказ №5/06 от 05.06.2017г."]
["(должность, фамилия, инициалы, реквизиты документа о представительстве)"]
["а также иные представители лиц, участвующих в освидетельствовании:"]
[]
["(должность, фамилия, инициалы, реквизиты документа о представительстве)"]
[]
["(должность, фамилия, инициалы, реквизиты документа о представительстве)"]
["произвели осмотр работ, выполненных",null,null,null,null,null,null,null,"ООО \"Реставратор\""]
["                                                                              (наименование лица, осуществляющего строительство, выполнившего работы )"]
["и составили настоящий акт о нижеследующем:"]
["1. К освидетельствованию предъявлены следующие работы",null,null,null,null,null,null,null,null,null,null,"Очистка потолков щетками - 3,4 м2"]
[]
[]
["(наименование скрытых работ)"]
["2. Работы выполнены по проектной документации",null,null,null,null,null,null,null,null,null,"ООО \"ПЦ \"Град\" проект №3488/2017-АС,"]
["ГИП Лизунов Т.Ю."]
["(номер, другие реквизиты чертежа, наименование проектной и/или рабочей документации,"]
["сведения о лицах, осуществляющих подготовку раздела  проектной и/или рабочей документации)"]
["3. При выполнении работ применены"]
[]
["(изделий) со ссылкой на сертификаты или другие документы, подтверждающие качество)"]
["4. Предъявлены документы, подтверждающие соответствие работ предъявляемым к ним "]
["требованиям:"]
[]
["(исполнительные схемы и чертежи, результаты экспертиз, обследований, лабораторных и иных"]
["испытаний выполненных работ, проведенных в процессе строительного контроля.)"]
["5. Даты: начала работ",null,null,null,null,"\"",30,"\""]
[null,"окончания работ",null,null,null,"\"",30,"\""]
["6. Работы выполнены в соответствии с проектом",null,null,null,null,null,null,null,null,null,{"$f":"K72","v":"ООО \"ПЦ \"Град\" проект №3488/2017-АС,"}]
[null,null,null,null,null,null,null,null,null,null,"(указываются наименование, статьи) "]
[{"$f":"A73","v":"ГИП Лизунов Т.Ю."}]
["СП 70.13330.2012 \"НЕСУЩИЕ И ОГРАЖДАЮЩИЕ КОНСТРУКЦИИ\" "]
[]
["(пункты) технического регламента, иных нормативных правовых актов, (разделы проектной и/или рабочей документации)"]
["7. Разрешается производство последующих работ по ",null,null,null,null,null,null,null,null,null,"огрунтовка потолков"]
[]
[]
["наименование работ,  конструкций, участков сетей инженерно-технического обеспечения)"]
["Дополнительные сведения ",null,null,null,null,null,"н/п"]
["Акт составлен в",null,null,null,3,"экземплярах."]
[]
["Приложения:"]
[]
["Представитель застройщика или технического заказчика по вопросам строительного контроля:"]
["гл. специалист ОКСИО ГКУ ГИСУ РТ Матюнин Д.А."]
["(должность, фамилия, инициалы, подпись)"]
["Представитель застройщика или заказчика",null,null,null,null,null,null,null,"гл. специалист ЗТО ГКУ ГИСУ РТ Миниханов И.Х."]
[]
["(должность, фамилия, инициалы, подпись)"]
["Представитель лица, осуществляющего строительство",null,null,null,null,null,null,null,null,null,"главный инженер ГУП \"Татлизинг\""]
[" Гильфанов Х.Ш."]
["(должность, фамилия, инициалы, подпись)"]
["Представитель лица, осуществляющего строительство, по вопросам строительного контроля"]
["главный инженер ГУП \"Татлизинг\" Гильфанов Х.Ш."]
["(должность, фамилия, инициалы, подпись)"]
["Представитель лица, осуществляющего подготовку проектной документации"]
["ГИП ООО \"ПЦ \"Град\" Степанова М.В."]
["(должность, фамилия, инициалы, подпись)"]
["Представитель лица, выполнившего работы, подлежащие освидетельствованию"]
["технический директор ООО \"Реставратор\" Галявиев Н.Ф"]
["(должность, фамилия, инициалы, подпись)"]
["Представители иных лиц:"]
["(должность, фамилия, инициалы, подпись)"]
[]
["(должность, фамилия, инициалы, подпись)"]
[]
["(должность, фамилия, инициалы, подпись)"]

{"sheet":"АСР 6","index":4,"n_rows":124,"n_cols":19,"rows_kept":124,"cut":false,"hidden":false,"merged":[[120,0,120,18],[121,0,121,18],[122,0,122,18],[123,0,123,18],[115,14,115,18],[116,0,116,18],[117,0,117,18],[118,6,118,10],[118,11,118,18],[119,0,119,18],[109,16,109,18],[110,0,110,18],[111,0,111,18],[112,13,112,18],[113,0,113,18],[114,0,114,18],[103,8,103,18],[104,0,104,18],[105,0,105,18],[106,10,106,18],[107,0,107,18],[108,0,108,18],[95,6,95,18],[98,3,98,18],[99,0,99,18],[100,17,100,18],[101,0,101,18],[102,0,102,18],[89,0,89,18],[90,0,90,18],[91,10,91,18],[92,0,92,18],[93,0,93,18],[94,0,94,18],[84,8,84,12],[84,13,84,14],[85,10,85,18],[86,10,86,18],[87,0,87,18],[88,0,88,18],[79,3,79,18],[80,0,80,18],[81,0,81,18],[82,0,82,18],[83,8,83,12],[83,13,83,14],[73,0,73,18],[74,0,74,18],[75,0,75,6],[75,7,75,18],[76,0,76,18],[77,0,77,18],[68,0,68,18],[69,0,69,18],[70,0,70,18],[71,0,71,9],[71,10,71,18],[72,0,72,18],[63,0,63,18],[64,0,64,7],[64,8,64,18],[65,0,65,18],[66,0,66,8],[67,0,67,10],[67,11,67,18],[58,0,58,18],[59,0,59,12],[59,13,59,18],[60,0,60,18],[61,0,61,18],[62,0,62,18],[52,0,52,18],[53,13,53,18],[54,0,54,18],[55,0,55,18],[56,14,56,18],[57,0,57,18],[46,0,46,18],[47,11,47,18],[48,0,48,18],[49,0,49,18],[50,17,50,18],[51,0,51,18],[41,0,41,16],[41,17,41,18],[42,0,42,18],[43,0,43,18],[44,8,44,18],[45,0,45,18],[35,0,35,18],[36,0,36,18],[37,0,37,18],[38,0,38,18],[39,1,39,5],[39,14,39,16],[29,0,29,18],[30,0,30,18],[31,0,31,18],[32,0,32,18],[33,0,33,18],[34,0,34,18],[23,0,23,18],[24,0,24,18],[25,0,25,18],[26,0,26,18],[27,0,27,18],[28,0,28,18],[18,0,18,18],[19,0,19,18],[20,0,20,16],[21,0,21,11],[21,12,21,18],[22,0,22,16],[12,8,12,18],[13,0,13,18],[14,0,14,18],[15,0,15,18],[16,0,16,16],[17,0,17,18],[6,0,6,18],[7,0,7,18],[8,0,8,18],[9,0,9,18],[10,0,10,18],[11,0,11,16],[1,0,1,6],[1,7,1,18],[2,0,2,18],[3,0,3,18],[4,7,4,18],[5,0,5,18]]}
[]
["Объект капитального строительства",null,null,null,null,null,null,"Капиталный ремонт ГАУЗ \"Городская детская"]
["больница №1\" г. Казань, ул. Ленская, д.2"]
["(наименование, почтовый или строительный адрес объекта капитального строительства)"]
["Застройщик или технический заказчик",null,null,null,null,null,null,"ГКУ \"Главное инвестиционно-строительное управление РТ\""]
["(наименование, ОГРН, ИНН, номер и дата выдачи свидетельства о допуске к видам работ по строительству, реконструкции,"]
["свидетельство №1021602841336 от 23.05.03г. ОГРН 1021602841336, ИНН 1654006250, "]
[" капитальному ремонту объектов капитального строительства, которые оказывают влияние на безопасность объектов, "]
["420043, г.Казань, ул Лесгафта, д.29, тел. (843)-264-80-00,"]
["с указанием саморегулируемой организации, его выдавшей, почтовые реквизиты, тел./факс – для  юридических лиц и индивидуальных "]
[]
["предпринимателей; фамилия, имя, отчество, паспортные данные, место проживания, телефон/факс - для физических лиц)"]
["Лицо, осуществляющее строительство",null,null,null,null,null,null,null,"Государственное унитарное предприятие РТ \"Татлизинг\""]
["(наименование, ОГРН, ИНН, номер и дата выдачи свидетельства о допуске к видам работ по строительству, реконструкции,"]
["ОГРН 1061655025090, ИНН 165510661, 420061, г.Казань, ул. Н. Ершова, дом 1а, "]
["помещение к-3/109, 3 этаж, тел. (843) 279-33-97"]
[" капитальному ремонту объектов капитального строительства, которые оказывают влияние на безопасность объектов, "]
["420029, РТ, г.Казань ул. Журналистов, 6"]
["с указанием саморегулируемой организации, его выдавшей, почтовые реквизиты, тел./факс – для  юридических лиц и индивидуальных "]
[]
["предпринимателей; фамилия, имя, отчество, паспортные данные, место проживания, телефон/факс - для физических лиц)"]
["Лицо, осуществляющее подготовку проектной документации",null,null,null,null,null,null,null,null,null,null,null,"Общество с ограниченной"]
["(наименование, ОГРН, ИНН, номер и дата выдачи свидетельства о допуске к видам работ по строительству, реконструкции,"]
["ответственностью \"ПЦ \"Град\", свидетельство №735.02.-2015-1660236406-П-192 от 26.02.2015г. "]
["ОГРН 1151690007083, ИНН 1660236406,  420029, г. Казань,  ул. Журналистов д.62 тел. (843)-238-43-69"]
[" капитальному ремонту объектов капитального строительства, которые оказывают влияние на безопасность объектов, "]
[]
["с указанием саморегулируемой организации, его выдавшей, почтовые реквизиты, тел./факс – для  юридических лиц и индивидуальных предпринимателей; фамилия, имя, отчество, паспортные данные, место проживания, телефон/факс - для физических лиц)"]
["Лицо, осуществляющее строительство, выполнившее работы, подлежащие освидетельствованию "]
["Общество с ограниченной ответственностью \"Реставратор\""]
["(наименование, ОГРН, ИНН, номер и дата выдачи свидетельства о допуске к видам работ по строительству, реконструкции,"]
[" ОГРН 1131690040041, ИНН 1655271243, 420111, РТ, г. Казань, "]
["Свидетельство СРО №0097-2015-1215059180-06 от 27.11.2015г.  СРО НП \"Союзнефтегазпроект\". "]
[" капитальному ремонту объектов капитального строительства, которые оказывают влияние на безопасность объектов, "]
["ул. К.Наджми, д.5, оф. 3.4, тел. (843)210-14-19,"]
["с указанием саморегулируемой организации, его выдавшей, почтовые реквизиты, тел./факс – для  юридических лиц и индивидуальных "]
["предпринимателей; фамилия, имя, отчество, паспортные данные, место проживания, телефон/факс - для физических лиц)"]
["АКТ"]
["освидетельствования скрытых работ "]
["№","АС-6",null,null,null,null,null,null,null,null,null,"\"",{"$f":"G85","v":30},"\"",{"$f":"I85","v":0},null,null,null,{"$f":"N85","v":0}]
[]
["Представитель застройщика или технического заказчика по вопросам строительного контроля:"]
[]
["(должность, фамилия, инициалы, реквизиты документа о представительстве)"]
["Представитель застройщика или заказчика:",null,null,null,null,null,null,null,"гл. специалист ЗТО ГКУ ГИСУ РТ Миниханов И.Х. приказ №"]
[]
["(должность, фамилия, инициалы, реквизиты документа о представительстве)"]
["Представитель лица, осуществляющего строительство:",null,null,null,null,null,null,null,null,null,null,"главный инженер ГУП \"Татлизинг\""]
["Гильфанов Х.Ш. приказ №10/61 от 28.03.2017г."]
["(должность, фамилия, инициалы, реквизиты документа о представительстве)"]
["Представитель лица, осуществляющего строительство, по вопросам строительного контроля :",null,null,null,null,null,null,null,null,null,null,null,null,null,null,null,null,"главный"]
["инженер ГУП \"Татлизинг\" Гильфанов Х.Ш. приказ №10/61 от 28.03.2017г."]
["(должность, фамилия, инициалы, реквизиты документа о представительстве)"]
["Представитель лица, осуществляющего подготовку проектной документации :",null,null,null,null,null,null,null,null,null,null,null,null,"ГИП ООО \"ПЦ \"Град\" Степанова"]
["М.В. приказ №"]
["(должность, фамилия, инициалы, реквизиты документа о представительстве)"]
["Представитель лица, выполнившего работы, подлежащие освидетельствованию:",null,null,null,null,null,null,null,null,null,null,null,null,null,"технический"]
["директор ООО \"Реставратор\" Галявиев Н.Ф. приказ №5/06 от 05.06.2017г."]
["(должность, фамилия, инициалы, реквизиты документа о представительстве)"]
["а также иные представители лиц, участвующих в освидетельствовании:"]
[]
["(должность, фамилия, инициалы, реквизиты документа о представительстве)"]
[]
["(должность, фамилия, инициалы, реквизиты документа о представительстве)"]
["произвели осмотр работ, выполненных",null,null,null,null,null,null,null,"ООО \"Реставратор\""]
["                                                                              (наименование лица, осуществляющего строительство, выполнившего работы )"]
["и составили настоящий акт о нижеследующем:"]
["1. К освидетельствованию предъявлены следующие работы",null,null,null,null,null,null,null,null,null,null,"Устройство перегородок из"]
["гипсокартонных листов (ГКЛ) по системе «КНАУФ» с одинарным металлическим каркасом и двухслойной обшивкой с обеих сторон (С 112): с одним дверным проемом - 212,9 м2"]
[]
["(наименование скрытых работ)"]
["2. Работы выполнены по проектной документации"]
[]
["(номер, другие реквизиты чертежа, наименование проектной и/или рабочей документации,"]
["сведения о лицах, осуществляющих подготовку раздела  проектной и/или рабочей документации)"]
["3. При выполнении работ применены",null,null,null,null,null,null,"Профиль направляющий ПН-6 100/40/0,6, Профиль стоечный ПС-6"]
["100/50/0,6"]
["(изделий) со ссылкой на сертификаты или другие документы, подтверждающие качество)"]
["4. Предъявлены документы, подтверждающие соответствие работ предъявляемым к ним "]
["требованиям:"]
[]
["(исполнительные схемы и чертежи, результаты экспертиз, обследований, лабораторных и иных"]
["испытаний выполненных работ, проведенных в процессе строительного контроля.)"]
["5. Даты: начала работ",null,null,null,null,"\"",30,"\""]
[null,"окончания работ",null,null,null,"\"",30,"\""]
["6. Работы выполнены в соответствии с проектом",null,null,null,null,null,null,null,null,null,{"$f":"K72","v":0}]
[null,null,null,null,null,null,null,null,null,null,"(указываются наименование, статьи) "]
[{"$f":"A73","v":0}]
["СП 70.13330.2012 \"НЕСУЩИЕ И ОГРАЖДАЮЩИЕ КОНСТРУКЦИИ\" "]
[]
["(пункты) технического регламента, иных нормативных правовых актов, (разделы проектной и/или рабочей документации)"]
["7. Разрешается производство последующих работ по ",null,null,null,null,null,null,null,null,null,"монтаж листов ГКЛ"]
[]
[]
["наименование работ,  конструкций, участков сетей инженерно-технического обеспечения)"]
["Дополнительные сведения ",null,null,null,null,null,"н/п"]
["Акт составлен в",null,null,null,3,"экземплярах."]
[]
["Приложения:"]
[]
["Представитель застройщика или технического заказчика по вопросам строительного контроля:"]
["гл. специалист ОКСИО ГКУ ГИСУ РТ Матюнин Д.А."]
["(должность, фамилия, инициалы, подпись)"]
["Представитель застройщика или заказчика",null,null,null,null,null,null,null,"гл. специалист ЗТО ГКУ ГИСУ РТ Миниханов И.Х."]
[]
["(должность, фамилия, инициалы, подпись)"]
["Представитель лица, осуществляющего строительство",null,null,null,null,null,null,null,null,null,"главный инженер ГУП \"Татлизинг\""]
[" Гильфанов Х.Ш."]
["(должность, фамилия, инициалы, подпись)"]
["Представитель лица, осуществляющего строительство, по вопросам строительного контроля"]
["главный инженер ГУП \"Татлизинг\" Гильфанов Х.Ш."]
["(должность, фамилия, инициалы, подпись)"]
["Представитель лица, осуществляющего подготовку проектной документации"]
["ГИП ООО \"ПЦ \"Град\" Степанова М.В."]
["(должность, фамилия, инициалы, подпись)"]
["Представитель лица, выполнившего работы, подлежащие освидетельствованию"]
["технический директор ООО \"Реставратор\" Галявиев Н.Ф"]
["(должность, фамилия, инициалы, подпись)"]
["Представители иных лиц:"]
["(должность, фамилия, инициалы, подпись)"]
[]
["(должность, фамилия, инициалы, подпись)"]
[]
["(должность, фамилия, инициалы, подпись)"]